Workbook

Sheet Sheet1
A1: FALSE | C1: 7/8 | D1: 1-5/8 | E1: 3 | F1: 3 EHT | G1: 4 | H1: 4 EHT | I1: 5 | J1: 5 EHT | K1: 6" 75 | L1: 6" 50 | M1: 7" 75 ohm | N1: 6" 75 EHT | O1: 6" 50 EHT | P1: 7" 75 EHT | Q1: 8" 75 | R1: 8" 75 EHT | S1: 9" 75 | T1: 9" 75EHT | U1: 9" 50 | V1: WR1800 | W1: WR1500 | X1: WR1150 | Y1: DTW1750A | Z1: DTW1500A | AA1: DTW1350A | AB1: Flex 7/8 | AC1: Flex 1-5/8 | AD1: Flex 2-1/8 | AE1: Flex 3-1/8 | AF1: Flex 4-1/16 | AG1: Flex 5 | AH1: Flex 6-1/18
A2: =IF(A1,C13,IF(C13<5,57+6*(C13-2),IF(C13<7,79+6*(C13-5),IF(C13<14,177+6*(C13-7),IF(C13<70,473+6*(C13-14),IF(AND(C13>200,C13<301),(C13-201)*0.2+88.1,0)))))) -> 581 | B2: a | C2: 47.290775 | D2: 155.55655 | E2: 523.73913 | F2: 837.29246 | G2: 835.586 | H2: 1410.3192 | I2: 1413.1216 | J2: 2315.5501 | K2: 1511.6731 | L2: 1759.2597 | M2: 2418.2025 | N2: 2550.5056 | O2: 2878.6275 | P2: 3454.3955 | Q2: 2537.0343 | R2: 4371.0837 | S2: 3133.7802 | T2: 5437.2584 | U2: 3649.3553 | AB2: 75.960319 | AC2: 153.91206 | AD2: 195.89561 | AE2: 399.42122 | AF2: 703.80641 | AG2: 1170.6447 | AH2: 1525.2624
B3: b | C3: -0.49750541 | D3: -0.49960995 | E3: -0.50019557 | F3: -0.51903287 | G3: -0.49999914 | H3: -0.52862023 | I3: -0.54129294 | J3: -0.54987676 | K3: -0.50016004 | L3: -0.49988895 | M3: -0.53088341 | N3: -0.52728227 | O3: -0.52432537 | P3: -0.53249611 | Q3: -0.49989272 | R3: -0.53033589 | S3: -0.4999738 | T3: -0.53039987 | U3: -0.50010968 | AB3: -0.52314837 | AC3: -0.50388693 | AD3: -0.4985551 | AE3: -0.51458511 | AF3: -0.51180545 | AG3: -0.52330794 | AH3: -0.52038116
B5: a | C5: 0.03435237 | D5: 0.019411759 | E5: 0.0088975165 | F5: 0.0088975165 | G5: 0.0062805955 | H5: 0.0062805955 | I5: 0.0051557424 | J5: 0.0051557424 | K5: 0.004164784 | L5: 0.0048890857 | M5: 0.0035505701 | N5: 0.004164784 | O5: 0.0048890857 | P5: 0.0035505701 | Q5: 0.0037828538 | R5: 0.0037828538 | S5: 3.8592881e-06 | T5: 3.8592881e-06 | V5: 61356900 | W5: 1645009600 | X5: 68650260000000 | Y5: 1916698900 | Z5: 1547868700 | AA5: 28536530000000 | AB5: 0.03424927 | AC5: 0.01322221 | AD5: 0.01843403 | AE5: 0.011068674 | AF5: 0.0082383747 | AG5: 0.003941857 | AH5: 0.0056980073
B6: b | C6: 1.0000284 | D6: 1.000053 | E6: 1.0001063 | F6: 1.0001063 | G6: 0.9999803 | H6: 0.9999803 | I6: 1.0000324 | J6: 1.0000324 | K6: 1.0000736 | L6: 0.99994884 | M6: 1.0000798 | N6: 1.0000736 | O6: 0.99994884 | P6: 1.0000798 | Q6: 0.49357481 | R6: 0.49357481 | S6: 0.99758369 | T6: 0.99758369 | V6: 1.0059289 | W6: 1.0056346 | X6: 1.006485 | Y6: 1.0064639 | Z6: 1.0050828 | AA6: 1.006997 | AB6: 1.0000069 | AC6: 0.9999824 | AD6: 1.0000198 | AE6: 1.0000631 | AF6: 1.0000655 | AG6: 0.99988496 | AH6: 1.0000268
B7: c | C7: 0.51772257 | D7: 0.51117032 | E7: 0.51590535 | F7: 0.51590535 | G7: 0.51295593 | H7: 0.51295593 | I7: 0.53260412 | J7: 0.53260412 | K7: 0.51818736 | L7: 0.51488769 | M7: 0.5189502 | N7: 0.51818736 | O7: 0.51488769 | P7: 0.5189502 | S7: 1.773151 | T7: 1.773151 | V7: -3.8658656 | W7: -4.2917627 | X7: -5.91199 | Y7: -4.4249388 | Z7: -4.2096239 | AA7: -5.880304 | AB7: 0.53016952 | AC7: 0.60199625 | AD7: 0.51163952 | AE7: 0.5181392 | AF7: 0.5290278 | AG7: 0.62544988 | AH7: 0.52825014
B8: d
B9: e
H11: Ver. 10.2
B12: Power Ratings and Attenuation vs. Channel or Freq.
B13: =IF(A1,"FREQUENCY (VHF and UHF):","FCC TV & FM Channel:") -> FCC TV & FM Channel: | C13: 32 | D13: =IF(A1,"MHz","") ->  | E13: Total length: | F13: 500 | G13: Select channel and line length fields. Table will automatically populate
A14: Frequency | C14: =IF(A1,C13,A2) -> 581
B17: Transmission Line | C17: 7/8" | D17: 1-5/8" | E17: 3-1/8" 50Ω | F17: 3-1/8" EHT | G17: 4-1/16" 50Ω | H17: 4-1/16" EHT
B18: Max. Avg. Power @ 0 psig | C18: =C$2*$A2^C$3 -> 1.993351334 | D18: =D$2*$A2^D$3 -> 6.469614498 | E18: =E$2*$A2^E$3 -> 21.70133076 | F18: =F21*0.885 -> 27.23467392 | G18: =G$2*$A2^G$3 -> 34.66613835 | H18: =H21*0.885 -> 43.15799558
B19: Max Power for DTV @ 0 psig | C19: =C18*0.9 -> 1.794016201 | D19: =D18*0.9 -> 5.822653048 | E19: =E18*0.9 -> 19.53119769 | F19: =F18*0.9 -> 24.51120653 | G19: 31.19952451 | H19: 38.84219603
B20: Peak TV Power 10% Aural @ 0 psig | C20: =C18/0.7 -> 2.847644764 | D20: =D18/0.7 -> 9.242306425 | E20: =E18/0.7 -> 31.00190109 | F20: =F23*0.885 -> 38.90667703 | G20: =G18/0.7 -> 49.52305478 | H20: =H23*0.885 -> 61.6542794
B21: Max. Avg. Power @ 15 psig | C21: =C18*1.21 -> 2.411955115 | D21: =D18*1.21 -> 7.828233542 | E21: =E18*1.21 -> 26.25861022 | F21: =F$2*$A2^F$3 -> 30.77364285 | G21: =G18*1.21 -> 41.9460274 | H21: =H$2*$A2^H$3 -> 48.7660967
B22: Max Power for DTV @ 15 psig | C22: =C21*0.9 -> 2.170759603 | D22: =D21*0.9 -> 7.045410188 | E22: 23.6327492 | F22: 27.69627856 | G22: 37.75142466 | H22: 43.88948703
B23: Peak TV Power 10% Aural @ 15 psig | C23: =C21/0.7 -> 3.445650164 | D23: 11.18319077 | E23: 37.51230032 | F23: 43.96234692 | G23: 59.92289629 | H23: 69.66585243
B24: Attenuation [dB/length] | C24: =C5*C6^$A$2*$A$2^C7*$F$13/100 -> 4.711606489 | D24: =D5*D6^$A$2*$A$2^D7*$F$13/100 -> 2.590434222 | E24: =E5*E6^$A$2*$A$2^E7*$F$13/100 -> 1.262155295 | F24: =F5*F6^$A$2*$A$2^F7*$F$13/100 -> 1.262155295 | G24: =G5*G6^$A2*$A2^G7*$F$13/100 -> 0.8126443372 | H24: =H5*H6^$A2*$A2^H7*$F$13/100 -> 0.8126443372
B25: Efficiency [%] | C25: =10^(-C24/10) -> 0.3379398065 | D25: 0.5507526276 | E25: 0.7477982949 | F25: 0.7477982949 | G25: 0.8293456408 | H25: 0.8293456408
B27: Transmission Line | C27: 5" 50Ω | D27: 5" EHT | E27: 6-1/8" 75Ω | F27: 6-1/8" 75Ω EHT | G27: 6-1/8" 50Ω | H27: 6-1/8" 50Ω EHT
B28: Max. Avg. Power @ 0 psig | C28: =I$2*$A2^I$3 -> 45.0765334 | D28: =D31*0.885 -> 61.89295769 | E28: =K$2*$A2^K$3 -> 62.65091815 | F28: =F31*0.875 -> 77.82753379 | G28: =L$2*$A2^L$3 -> 73.0379962 | H28: =H31*0.885 -> 90.53178165
B29: Max Power for DTV @ 0 psig | C29: =C28*0.9 -> 40.56888006 | D29: =D28*0.9 -> 55.70366192 | E29: =E28*0.9 -> 56.38582634 | F29: =F28*0.9 -> 70.04478041 | G29: =G28*0.9 -> 65.73419658 | H29: =H28*0.9 -> 81.47860349
B30: Peak TV Power 10% Aural @ 0 psig | C30: =C28/0.7 -> 64.39504772 | D30: =D33*0.885 -> 88.41851099 | E30: =E28/0.7 -> 89.50131165 | F30: =F33*0.875 -> 111.1821911 | G30: =G28/0.7 -> 104.3399946 | H30: =H33*0.885 -> 129.3311166
B31: Max. Avg. Power @ 15 psig | C31: =C28*1.21 -> 54.54260542 | D31: =J$2*$A2^J$3 -> 69.93554542 | E31: =E28*1.22 -> 76.43412015 | F31: =N$2*$A2^N$3 -> 88.9457529 | G31: =G28*1.21 -> 88.37597541 | H31: =O$2*$A2^O$3 -> 102.2957985
B32: Max Power for DTV @ 15 psig | C32: =C31*0.9 -> 49.08834488 | D32: =D31*0.9 -> 62.94199087 | E32: =E31*0.9 -> 68.79070813 | F32: =F31*0.9 -> 80.05117761 | G32: =G31*0.9 -> 79.53837787 | H32: =H31*0.9 -> 92.06621863
B33: Peak TV Power 10% Aural @ 15 psig | C33: =C31/0.7 -> 77.91800774 | D33: 99.90792202 | E33: 109.1916002 | F33: 127.0653613 | G33: 126.2513934 | H33: 146.136855
B34: Attenuation [dB/length] | C34: =I5*I6^$A2*$A2^I7*$F$13/100 -> 0.7791983276 | D34: =J5*J6^$A2*$A2^J7*$F$13/100 -> 0.7791983276 | E34: =K5*K6^$A2*$A2^K7*$F$13/100 -> 0.5881580734 | F34: =N5*N6^$A2*$A2^N7*$F$13/100 -> 0.5881580734 | G34: =L5*L6^$A2*$A2^L7*$F$13/100 -> 0.6288233152 | H34: =O5*O6^$A2*$A2^O7*$F$13/100 -> 0.6288233152
B35: Efficiency [%] | C35: =10^(-C34/10) -> 0.835757278 | D35: 0.835757278 | E35: 0.8733416909 | F35: =10^(-F34/10) -> 0.8733416909 | G35: 0.8652023064 | H35: 0.8652023064
B37: Transmission Line | C37: 7-3/16" 75Ω | D37: 7-3/16" 75Ω EHT | E37: 8-3/16" 75Ω | F37: 8-3/16" 75Ω EHT | G37: 9-3/16" 75Ω | H37: 9-3/16" 75Ω EHT
B38: Max. Avg. Power @ 0 psig | C38: =M$2*$A2^M$3 -> 82.42091182 | D38: =D41*0.875 -> 101.9687451 | E38: =IF(OR($A$2<=704,AND($F$61>200,$F$61<301)),Q$2*$A$2^Q$3,"N/A") -> 105.3258114 | F38: =IF(OR($A$2<=704,AND($F$61>200,$F$61<301)),F$41*0.875,"N/A") -> 130.8143436 | G38: =IF(OR($A$2<=620,AND($F$61>200,$F$61<301)),S$2*$A2^S$3,"N/A") -> 130.032792 | H38: =IF(OR($A$2<=620,AND($F$61>200,$F$61<301)),H$41*0.875,"N/A") -> 162.6557291
B39: Max Power for DTV @ 0 psig | C39: =C38*0.9 -> 74.17882064 | D39: =D38*0.9 -> 91.77187055 | E39: =IF(OR($A$2<=704,AND($F$61>200,$F$61<301)),E38*0.9,"N/A") -> 94.79323024 | F39: =IF(OR($A$2<=704,AND($F$61>200,$F$61<301)),F38*0.9,"N/A") -> 117.7329093 | G39: =IF(OR($A$2<=620,AND($F$61>200,$F$61<301)),G38*0.9,"N/A") -> 117.0295128 | H39: =IF(OR($A$2<=620,AND($F$61>200,$F$61<301)),H38*0.9,"N/A") -> 146.3901562
B40: Peak TV Power 10% Aural @ 0 psig | C40: =C38/0.7 -> 117.7441597 | D40: =D43*0.875 -> 145.6696358 | E40: =IF(OR(A2<=704,AND(F61>200,F61<301)),E38/0.7,"N/A") -> 150.4654448 | F40: =IF(OR($A$2<=704,AND($F$61>200,$F$61<301)),F$43*0.875,"N/A") -> 186.8776337 | G40: =IF(OR($A$2<=620,AND($F$61>200,$F$61<301)),G38/0.7,"N/A") -> 185.7611314 | H40: =IF(OR($A$2<=620,AND($F$61>200,$F$61<301)),H$43*0.875,"N/A") -> 232.3653272
B41: Max. Avg. Power @ 15 psig | C41: =C38*1.22 -> 100.5535124 | D41: =P$2*$A2^P$3 -> 116.5357086 | E41: =IF(OR(A2<=704,AND(F61>200,F61<301)),E38*1.22,"N/A") -> 128.4974899 | F41: =IF(OR(A2<=704,AND(F61>200,F61<301)),R$2*$A2^R$3,"N/A") -> 149.502107 | G41: =IF(OR($A$2<=620,AND($F$61>200,$F$61<301)),G38*1.22,"N/A") -> 158.6400062 | H41: =IF(OR($A$2<=620,AND($F$61>200,$F$61<301)),T$2*$A2^T$3,"N/A") -> 185.8922618
B42: Max Power for DTV @ 15 psig | C42: =C41*0.9 -> 90.49816118 | D42: =D41*0.9 -> 104.8821378 | E42: =IF(OR($A$2<=704,AND($F$61>200,$F$61<301)),E41*0.9,"N/A") -> 115.6477409 | F42: =IF(OR($A$2<=704,AND($F$61>200,$F$61<301)),F41*0.9,"N/A") -> 134.5518963 | G42: =IF(OR($A$2<=620,AND($F$61>200,$F$61<301)),G41*0.9,"N/A") -> 142.7760056 | H42: =IF(OR($A$2<=620,AND($F$61>200,$F$61<301)),H41*0.9,"N/A") -> 167.3030356
B43: Peak TV Power 10% Aural @ 15 psig | C43: =C41/0.7 -> 143.6478749 | D43: =D41/0.7 -> 166.4795838 | E43: =IF(OR(A2<=704,AND(F61>200,F61<301)),E41/0.7,"N/A") -> 183.5678427 | F43: =IF(OR(A2<=704,AND(F61>200,F61<301)),F41/0.7,"N/A") -> 213.5744386 | G43: =IF(OR($A$2<=620,AND($F$61>200,$F$61<301)),G41/0.7,"N/A") -> 226.6285803 | H43: =IF(OR($A$2<=620,AND($F$61>200,$F$61<301)),H41/0.7,"N/A") -> 265.560374
B44: Attenuation [dB/length] | C44: =M5*M6^$A2*$A2^M7*$F$13/100 -> 0.5056762908 | D44: =P5*P6^$A2*$A2^P7*$F$13/100 -> 0.5056762908 | E44: =IF(OR(A2<=704,AND(F61>200,F61<301)),Q$5*$A2^Q$6*$F$13/100,"N/A") -> 0.4376402633 | F44: =IF(OR(A2<=704,AND(F61>200,F61<301)),R$5*$A2^R$6*$F$13/100,"N/A") -> 0.4376402633 | G44: =IF(OR($A$2<=620,AND($F$61>200,$F$61<301)),S5*S6^$A2*$A2^S7*$F$13/100,"N/A") -> 0.3770035455 | H44: =IF(OR($A$2<=620,AND($F$61>200,$F$61<301)),T5*T6^$A2*$A2^T7*$F$13/100,"N/A") -> 0.3770035455
B45: Efficiency [%] | C45: =10^(-C44/10) -> 0.8900868214 | D45: =10^(-D44/10) -> 0.8900868214 | E45: =IF(OR(A2<=704,AND(F61>200,F61<301)),10^(-E44/10),"N/A") -> 0.9041406046 | F45: =IF(OR(A2<=704,AND(F61>200,F61<301)),10^(-F44/10),"N/A") -> 0.9041406046 | G45: =IF(OR($A$2<=620,AND($F$61>200,$F$61<301)),10^(-G44/10), "N/A") -> 0.916852863 | H45: =IF(OR($A$2<=620,AND($F$61>200,$F$61<301)),10^(-H44/10), "N/A") -> 0.916852863
B47: Flexline Air 50Ω | C47: 7/8" HJ5-50 | D47: 1-5/8" HJ7-50A | E47: 2-1/4" | F47: 3" HJ8-50B | G47: 4" HJ11-50 | H47: 5" HJ9-50 | K47: length/100 = | L47: =F13/100 -> 5
B48: Max. Avg. Power @ 0 psig | C48: =IF((2.781/($C$54/L47)>90),90,2.781/($C$54/L47)) -> 2.938746426 | D48: =IF((3.355/($D$54/L47)>305),305,3.355/($D54/L47)) -> 6.470006441 | E48: =IF((3.9042/($E54/L47)>425),425,3.9042/($E54/L47)) -> 8.982402209 | F48: =IF((5.9953/($F54/L47)>640),640,5.9953/($F54/L47)) -> 15.04548265 | G48: =IF((7.4002/($G54/L47)>1100),1100,7.4002/($G54/L47)) -> 23.74983168 | H48: =IF((6.6668/($H54/L47)>1890),1890,6.6668/($H54/L47)) -> 32.05894133
B49: Max Power for DTV @ 0 psig | C49: =C48*0.9 -> 2.644871783 | D49: =D48*0.9 -> 5.823005797 | E49: =E48*0.9 -> 8.084161988 | F49: =F48*0.9 -> 13.54093439 | G49: =G48*0.9 -> 21.37484851 | H49: =H48*0.9 -> 28.85304719
B50: Peak TV Power 10% Aural @ 0 psig | C50: =C48/0.7 -> 4.198209179 | D50: 9.242866344 | E50: 12.83200316 | F50: 21.49354665 | G50: 33.92833097 | H50: 45.79848761
B51: Max. Avg. Power @ 15 psig | C51: =C48*1.22 -> 3.585270639 | D51: 7.893407858 | E51: 10.95853069 | F51: 18.35548884 | G51: 28.97479465 | H51: 39.11190842 | J51: 11802.854
B52: Max Power for DTV @ 15 psig | C52: =C51*0.9 -> 3.226743575 | D52: =D51*0.9 -> 7.104067072 | E52: =E51*0.9 -> 9.862677625 | F52: =F51*0.9 -> 16.51993995 | G52: =G51*0.9 -> 26.07731518 | H52: =H51*0.9 -> 35.20071757
B53: Peak TV Power 10% Aural @ 15 psig | C53: =C51/0.7 -> 5.121815199 | D53: 11.27629694 | E53: 15.65504385 | F53: 26.22212691 | G53: 41.39256378 | H53: 55.87415488
B54: Attenuation [dB/length] | C54: =((0.035307*SQRT($A$2))+(0.000164*$A$2))*$L$47 -> 4.731609328 | D54: =((0.01944*SQRT($A$2))+(0.000086*$A$2))*$L$47 -> 2.592733122 | E54: =((0.016104*SQRT($A$2))+(0.00008*$A$2))*L47 -> 2.173249377 | F54: =((0.012434*SQRT($A$2))+(0.00017*$A$2))*L47 -> 1.992392048 | G54: =((0.010396*SQRT($A$2))+(0.000105*$A$2))*L47 -> 1.557947884 | H54: =((0.007374*SQRT($A$2))+(0.000052*$A$2))*L47 -> 1.039772326
B55: Efficiency [%] | C55: =10^(-C54/10) -> 0.3363868943 | D55: 0.5504611686 | E55: 0.6062825413 | F55: 0.6320636215 | G55: 0.6985624089 | H55: 0.7870870507
B57: Flexline Foam 50Ω | C57: 1/2" | D57: 7/8" | E57: 1-1/4" | F57: 1-5/8" | G57: 2-1/4"
B58: Max. Avg. Power | C58: =IF((2.325/($C61/L47)>40),40,2.325/($C61/L47)) -> 1.33915583 | D58: =IF((2.77/($D61/L47)>91),91,2.77/($D61/L47)) -> 2.962752691 | E58: =IF((3.455/($E61/L47)>205),205,3.455/($E61/L47)) -> 5.210295137 | F58: =IF((3.351/($F61/L47)>315),315,3.351/($F61/L47)) -> 6.045025296 | G58: =IF((3.76/($G61/L47)>425),425,3.76/($G61/L47)) -> 7.662912769
B59: Max Power for DTV | C59: =C58*0.9 -> 1.205240247 | D59: =D58*0.9 -> 2.666477422 | E59: =E58*0.9 -> 4.689265623 | F59: =F58*0.9 -> 5.440522767 | G59: =G58*0.9 -> 6.896621492
B60: Peak TV Power 10% Aural | C60: =C58/0.7 -> 1.913079757 | D60: =D58/0.7 -> 4.232503845 | E60: =E58/0.7 -> 7.443278767 | F60: =F58/0.7 -> 8.635750423 | G60: =G58/0.7 -> 10.94701824
B61: Attenuation [dB/length] | C61: =((0.065906*SQRT($A$2))+(0.000254*$A$2))*L47 -> 8.680841871 | D61: =((0.0351*SQRT($A$2))+(0.000153*$A$2))*L47 -> 4.674706748 | E61: =((0.02416*SQRT($A$2))+(0.000139*$A$2))*L47 -> 3.315551144 | F61: =((0.01931*SQRT($A$2))+(0.000153*$A$2))*L47 -> 2.77170056 | G61: =((0.0165*SQRT($A$2))+(0.00016*$A$2))*L47 -> 2.453375181
B62: Efficiency [%] | C62: =10^(-C61/10) -> 0.1354926737 | D62: =10^(-D61/10) -> 0.3408233377 | E62: =10^(-E61/10) -> 0.4660632782 | F62: =10^(-F61/10) -> 0.5282383698 | G62: =10^(-G61/10) -> 0.5684110105
A65: Frequency to Channel | C65: Frequency> | D65: =A2 -> 581
A66: (operating Freq - bottom channel Freq) / channel width + bottom Channel #
B67: Channel # => | C67: =($A$2-LOOKUP($A$2,$D$50:$D$55))/VLOOKUP($A$2,$D$50:$F$55,3)+VLOOKUP($A$2,$D$50:$F$55,2) | F67: =(A2-F68)/F70+F69 -> 32
B68: BOT FREQ lookup | C68: =LOOKUP(A2,D50:D55) | F68: =LOOKUP(A2,D72:D77) -> 473
B69: bot chan lookup | C69: =VLOOKUP($A$2,$D$50:$F$55,2) | F69: =VLOOKUP($A$2,$D$72:$F$77,2) -> 14
B70: divisor lookup | C70: =VLOOKUP($A$2,$D$50:$F$55,3) | F70: =VLOOKUP($A$2,$D$72:$F$77,3) -> 6 | G70: Calculated
D71: Btm Freq | E71: bottom Ch# | F71: divisor | G71: Channel #
D72: 54 | E72: 2 | F72: 6 | G72: =($A$2-$D72)/$F72+$E72 -> 89.83333333
D73: 57 | E73: 2 | F73: 6 | G73: 89.33333333
D74: 79 | E74: 5 | F74: 6 | G74: 88.66666667
D75: 88.1 | E75: 201 | F75: 0.2 | G75: 2665.5
D76: 177 | E76: 7 | F76: 6 | G76: 74.33333333
D77: 473 | E77: 14 | F77: 6 | G77: 32
A81: =IF(AND(C13>200,C13<301),TRUE,FALSE) -> FALSE | B81: <=FM ch
A82: =IF(AND(C13>1,C13<70),TRUE,FALSE) -> TRUE | B82: <=TV ch
